Cogmind - Beta 13 X1 *** ADVENTURER MODE // 2023.08.01 @ 12:57:22 Player: Minty Result: Destroyed by G-50 Soldier with Heavy Laser Performance ------------- Evolutions (5) 2500 Regions Visited (9) 1800 Robots Destroyed (96) 480 Value Destroyed (3159) 3159 Prototype IDs (6) 120 Alien Tech Used (0) 0 Bonus (270) 270 TOTAL SCORE: 8329 Bonus ------- High Alert Combat Kills 127 Follower Combat Kills 165 Friendly Fire -22 Cogmind --------- Core Integrity 0/1000 Matter 277/300 Energy 56/100 System Corruption 5% Temperature Cool (9) Movement Core (50) Location -5/Factory Parts ------- > --- POWER (3) -------- (None) > --- PROPULSION (6) --- (None) > --- UTILITY (5) ------ (None) > --- WEAPON (3) ------- (None) > --- INVENTORY (5) ---- Improved Kinecellerator Advanced Hacking Suite Heavy Gatling Laser Mass Driver Peak State ------------ > --- POWER ------------ Light Angular Momentum Engine > --- PROPULSION ------- Improved Cesium-ion Thruster Improved Cesium-ion Thruster Field Propulsion Drive Field Propulsion Drive Field Propulsion Drive > --- UTILITY ---------- Advanced Heat Sink Improved Signal Interpreter Improved Terrain Scanner Terrain Scan Processor Terrain Scan Processor > --- WEAPON ----------- Heavy Gatling Laser KE Penetrator Rocket Launcher > --- INVENTORY -------- Improved Heat Sink Improved Kinecellerator Advanced Hacking Suite Mass Driver [Rating: 65] Favorites ----------- Power Ion Engine Engine Ion Engine Power Core Light Fission Core Propulsion Flight Unit Treads Light Treads Leg Aluminum Leg Hover Unit Linear Gravjet Flight Unit Flight Unit Utility Advanced Visual Processing Unit Device Improved Terrain Scanner Storage Huge Storage Unit Processor Advanced Visual Processing Unit Hackware System Shield Protection Weapon Shielding Weapon Particle Gun Energy Gun Particle Gun Energy Cannon Phase Cannon Ballistic Gun Heavy Assault Rifle Ballistic Cannon Mass Driver Launcher Grenade Launcher Special Weapon Mining Laser Slashing Weapon Mining Claw Special Melee Weapon Datajack Build | -11 -10 -10 -9 -9 -8 -7 -7 -7 -5 ------- Run | Jun Mat Min Mat Min Mat Fac Sto Rec Fac Slots Evolved 10 | . . . 2 . 2 2 . . 4 Power 2 | . . . . . . . . . 2 Propulsion 4 | . . . 1 . . 1 . . 2 Utility 3 | . . . . . 2 1 . . . Weapon 1 | . . . 1 . . . . . . Parts Attached 132 | . 6 19 21 4 23 9 9 6 35 Power 23 | . 2 3 3 3 3 3 1 1 4 Engine 19 | . 2 3 3 2 3 2 1 1 2 Core 4 | . . . . 1 . 1 . . 2 Reactor . | . . . . . . . . . . Propulsion 33 | . . 5 8 . 8 3 3 . 6 Treads 9 | . . 4 4 . . . . . 1 Leg 13 | . . 1 1 . 7 3 1 . . Wheel . | . . . . . . . . . . Hover 2 | . . . . . . . . . 2 Flight 9 | . . . 3 . 1 . 2 . 3 Utility 30 | . 4 4 1 1 5 1 2 1 11 Device 14 | . . 1 . 1 3 1 2 . 6 Storage 4 | . 3 1 . . . . . . . Processor 6 | . . 1 1 . 1 . . 1 2 Hackware 1 | . . . . . 1 . . . . Protection 5 | . 1 1 . . . . . . 3 Artifact . | . . . . . . . . . . Weapon 46 | . . 7 9 . 7 2 3 4 14 Energy Gun 16 | . . 3 3 . 2 1 3 . 4 Energy Cannon 3 | . . . 1 . . . . . 2 Ballistic Gun 12 | . . . 3 . 4 1 . 1 3 Ballistic Cannon 4 | . . . . . . . . 1 3 Launcher 5 | . . 2 . . 1 . . 1 1 Special Weapon 2 | . . 1 1 . . . . . . Impact Weapon . | . . . . . . . . . . Slashing Weapon 3 | . . . 1 . . . . 1 1 Piercing Weapon . | . . . . . . . . . . Special Melee Weapon 1 | . . 1 . . . . . . . Unidentified Prototypes 4 | . . . . . 1 . 1 . 2 Corrupted Parts 2 | . . 2 . . . . . . . System Corruption 4 | . . 4 . . . . . . . Parts Lost 33 | . . 4 1 . 6 1 . 3 18 Power 7 | . . 1 . . . . . 1 5 Propulsion 10 | . . . . . 4 . . . 6 Utility 7 | . . 2 . . . . . 2 3 Weapon 9 | . . 1 1 . 2 1 . . 4 Highest Loss Streak 6 | . . 3 1 . 3 1 . 2 6 To Critical Strikes . | . . . . . . . . . . Average Slot Usage (%) 88 | . 99 99 91 99 93 92 91 53 44 Engine 9 | . 14 14 11 11 8 6 7 7 1 Treads 7 | . . 25 16 . . . . . . Leg 8 | . 28 2 2 . 7 28 23 . . Flight 9 | . . . 9 33 16 . 3 15 6 Device 7 | . . 3 . 8 18 18 20 7 5 Storage 5 | . 14 14 1 . . . . . . Processor 10 | . . 4 20 13 15 15 15 19 15 Protection 3 | . 13 5 . . . . . . 1 Energy Gun 11 | . 14 18 13 11 4 12 12 . 2 Ballistic Gun 9 | . 14 . 5 22 19 9 6 . 1 Launcher 2 | . . 7 . . . . . . . Naked Turns 3 | . . . . . . . . . 3 Heaviest Build 94 | 12 90 94 91 12 18 24 29 13 29 Greatest Support 78 | 20 20 40 60 12 60 78 58 12 33 Greatest Overweight (x) 30 | . 4 30 3 . 3 . 3 1 9 Average Overweight (x) . | . . 1 . . . . . . . Largest Inventory Capacity 25 | . 25 25 25 5 5 5 5 5 5 Average Capacity 10 | . 8 23 8 5 5 5 5 5 5 Most Carried 16 | . 10 15 16 5 5 5 5 5 5 Average Carried 6 | . 7 11 4 4 4 4 4 4 4 Final Capacity 25 | 8 10 25 5 5 5 5 5 5 5 Final Carried 13 | 6 10 13 5 5 5 5 5 5 4 Class Distribution -------------------- 38% | Mutant 26% | Scavenger-Skirmisher 9% | Scavenger-Mutant 7% | Scavenger-Scout 6% | Gunner 5% | Sprinter Dominant Class ---------------- Mutant | -10/Materials Mutant | -10/Mines Gunner | -9/Materials Scavenger-Skirmisher | -9/Mines Scavenger-Scout | -8/Materials Scavenger-Skirmisher | -7/Factory Scavenger-Skirmisher | -7/Storage Sprinter | -7/Recycling Mutant | -5/Factory Resources | -11 -10 -10 -9 -9 -8 -7 -7 -7 -5 ----------- Run | Jun Mat Min Mat Min Mat Fac Sto Rec Fac Matter Collected 2340 | 200 138 301 262 84 442 247 100 82 484 Remotely 296 | . . . . . 192 104 . . . Salvage Created 3932 | . 413 410 342 293 833 310 89 258 984 Parts 203 | . 26 20 20 19 53 6 3 14 42 Haulers Intercepted 6 | . 1 . 1 . 2 . 1 . 1 Recyclers Shooed 4 | . . 1 . . 1 1 . . 1 Parts Field Recycled . | . . . . . . . . . . Retrieved Matter . | . . . . . . . . . . Parts Self-Destructed . | . . . . . . . . . . Prevented . | . . . . . . . . . . Kills | -11 -10 -10 -9 -9 -8 -7 -7 -7 -5 ------- Run | Jun Mat Min Mat Min Mat Fac Sto Rec Fac Combat Hostiles Destroyed 70 | . 11 12 6 2 16 6 1 2 14 Melee 1 | . . . 1 . . . . . . Guns 56 | . 11 5 5 2 15 6 1 1 10 Cannons 5 | . . 1 . . . . . . 4 AOE 8 | . . 6 . . 1 . . 1 . Classes Destroyed 14 | . 4 2 1 1 2 1 . 1 2 Worker 3 | . . . . . . . . . 3 Builder 3 | . . . . . . . . . 3 Tunneler 4 | . . . . 4 . . . . . Hauler 6 | . 1 . 1 . 2 . 1 . 1 Recycler 6 | . . 1 . 1 1 . . 2 1 Mechanic 1 | . 1 . . . . . . . . Operator 1 | . . . . . 1 . . . . Watcher 2 | . . . . . 2 . . . . Swarmer 12 | . 6 3 . . 3 . . . . Grunt 31 | . 5 7 2 1 7 2 1 . 6 Duelist 2 | . . . 1 1 . . . . . Sentry 15 | . . 2 3 . 6 2 . . 2 Hunter 4 | . . . . . . 2 . . 2 Programmer 6 | . . . . . . . . 2 4 Best Kill Streak 8 | . 4 5 3 2 6 2 1 4 8 Combat Bots Only 5 | . 3 5 3 2 4 2 1 2 2 Max Kills in Single Turn 2 | . 2 1 1 1 2 1 1 2 2 Gunslinging 1 | . 1 . . . 1 . . . . Exploded 1 | . . 1 . . 1 . . 1 . Melee 1 | . . . 1 . . . . . . Uniques/NPCs Destroyed . | . . . . . . . . . . Combat | -11 -10 -10 -9 -9 -8 -7 -7 -7 -5 -------- Run | Jun Mat Min Mat Min Mat Fac Sto Rec Fac Damage Taken 5484 | . 134 739 473 17 493 442 26 239 2921 Core 1441 | . 43 127 60 . 69 47 14 68 1013 Absorbed by Shields . | . . . . . . . . . . Redirected to Shielding 53 | . 7 46 . . . . . . . Ignored by Resistances 1555 | . 43 221 138 6 142 146 7 71 781 Regen/Repaired (Parts) 31 | . . . . . 31 . . . . Core Remaining (%) 77 | 100 . 32 . 85 87 . . 81 . Volleys Fired 242 | . 26 41 14 11 48 23 4 5 70 Largest 3 | . 2 2 3 3 3 3 3 1 3 Hottest 251 | . 60 100 181 108 144 144 148 33 251 Shots Fired 487 | . 52 61 38 33 114 67 12 5 105 Gun 423 | . 52 40 30 33 113 67 12 4 72 Cannon 39 | . . . 8 . . . . . 31 Launcher 15 | . . 11 . . 1 . . 1 2 Special 10 | . . 10 . . . . . . . Kinetic 272 | . 26 9 12 22 111 31 4 4 53 Thermal 160 | . . 32 26 11 2 35 4 . 50 Explosive 15 | . . 11 . . 1 . . 1 2 Electromagnetic 40 | . 26 9 . . . 1 4 . . Robot Hit Streak 29 | . 7 17 14 17 11 21 7 6 29 Robot Miss Streak 6 | . 4 6 2 2 4 3 4 1 2 Penetration Max 1 | . . . . . . . . . 1 Secondary Targets 9 | . 2 1 . 1 3 1 . . 1 Max Gunslinging Chain 1 | . 1 1 . 1 1 1 . . 1 Shots Hit Robots 364 | . 31 38 32 22 84 54 9 4 90 Core Hits 201 | . 22 24 12 11 44 23 5 9 51 Critical Kills 1 | . . . . . . . . . 1 Critical Parts Destroyed 3 | . . . . . . . . . 3 Critical Strikes 12 | . 1 . 1 . 1 4 . . 5 Burn 4 | . . . . . . 4 . . . Destroy 6 | . . . 1 . 1 . . . 4 Blast 1 | . . . . . . . . . 1 Corrupt 1 | . 1 . . . . . . . . Melee Attacks 5 | . . . 1 . . . . 1 3 Impact . | . . . . . . . . . . Slashing 5 | . . . 1 . . . . 1 3 Piercing . | . . . . . . . . . . Sneak Attacks . | . . . . . . . . . . Combat Hostiles . | . . . . . . . . . . Follow-up Attacks . | . . . . . . . . . . Damage Inflicted 7609 | . 439 924 451 310 1193 771 158 247 3116 Guns 5527 | . 403 423 331 310 1165 769 154 78 1894 Cannons 984 | . . . 88 . . . . . 896 Explosions 956 | . 36 452 . . 28 . . 169 271 Melee 51 | . . . 29 . . . . . 22 Ramming 43 | . . 1 3 . . 2 4 . 33 Kinetic 3410 | . 184 102 96 171 1151 330 43 78 1255 Thermal 2857 | . 36 343 323 139 14 419 48 . 1535 Explosive 855 | . . 387 . . 28 . . 169 271 Electromagnetic 393 | . 219 91 . . . 20 63 . . Impact . | . . . . . . . . . . Slashing 51 | . . . 29 . . . . . 22 Piercing . | . . . . . . . . . . Highest Corruption 5 | . . 4 . . . . . 2 5 Average Corruption 2 | . . 2 . . . . . 1 4 Corruption Purged . | . . . . . . . . . . Corruption Blocked . | . . . . . . . . . . Effects 18 | . . 12 . . . . . . 6 Message Errors 4 | . . 4 . . . . . . . Matter Fused 2 | . . 2 . . . . . . . Heat Flow Errors 1 | . . 1 . . . . . . . Energy Discharges 1 | . . . . . . . . . 1 Parts Rejected 1 | . . . . . . . . . 1 Parts Fused 1 | . . 1 . . . . . . . Data Loss (minor) 8 | . . 4 . . . . . . 4 Overload Shots . | . . . . . . . . . . Overflow Damage 75 | . . 32 . . . . . 17 26 Projectiles 26 | . . . . . . . . . 26 Explosions 49 | . . 32 . . . . . 17 . Melee . | . . . . . . . . . . Knockbacks 5 | . . . . . . . . . 5 Impact . | . . . . . . . . . . Kinetic 4 | . . . . . . . . . 4 Secondary 1 | . . . . . . . . . 1 Self-Inflicted Damage 147 | . 13 93 . . . . . 31 10 Shots 5 | . 1 3 . . . . . 1 . Rammed 17 | . . 3 4 . . . . . 10 Targets Rammed 19 | . . 3 4 . . 1 1 . 10 Kicked 2 | . . . . . . 1 1 . . Crushed . | . . . . . . . . . . Highest Temperature 437 | . 18 212 437 204 111 365 150 . 277 Average Temperature 80 | . 10 60 136 64 25 113 59 . 81 Received Heat Transfer 1890 | . 33 375 156 12 306 159 18 30 801 Effects 2 | . . . 1 . . . . . 1 Energy Bleed 1 | . . . . . . . . . 1 Matter Decay 1 | . . . 1 . . . . . . Siege Activations . | . . . . . . . . . . Robots Corrupted . | . . . . . . . . . . Combat Hostiles . | . . . . . . . . . . Parts Fried 1 | . . . . . . . 1 . . Impact Corruptions . | . . . . . . . . . . Robots Melted . | . . . . . . . . . . Combat Hostiles . | . . . . . . . . . . Parts Melted 10 | . . 1 2 1 . 3 . . 3 Heat Transferred 5650 | . 100 792 740 333 37 1332 111 . 2205 Parts Sabotaged . | . . . . . . . . . . Parts Stolen . | . . . . . . . . . . Parts Stripped . | . . . . . . . . . . Power Chain Reactions 1 | . 1 . . . . . . . . Missiles Intercepted . | . . . . . . . . . . Alert | -11 -10 -10 -9 -9 -8 -7 -7 -7 -5 ------- Run | Jun Mat Min Mat Min Mat Fac Sto Rec Fac Peak Influence 632 | . 248 212 250 150 632 565 220 103 332 Initial 220 | . . 31 3 82 21 195 220 52 136 Average 175 | . 140 82 72 81 407 417 159 61 206 Maximum Alert Level 2 | . 1 1 1 . 2 2 1 . 1 Low Security (%) 68 | . 55 98 90 100 18 12 72 100 47 Level 1 18 | . 44 1 9 . 13 31 27 . 52 Level 2 12 | . . . . . 68 56 . . . Level 3 . | . . . . . . . . . . Level 4 . | . . . . . . . . . . Level 5 . | . . . . . . . . . . High Security . | . . . . . . . . . . Max Security . | . . . . . . . . . . Squads Dispatched 14 | . 1 . 1 . 4 3 2 . 3 Investigation 6 | . 1 . 1 . 1 2 1 . . Extermination 1 | . . . . . . . . . 1 Reinforcement 5 | . . . . . 3 . 1 . 1 Assault . | . . . . . . . . . . Garrison 2 | . . . . . . 1 . . 1 Intercept . | . . . . . . . . . . Searches Triggered . | . . . . . . . . . . Construction Impeded 1 | . . . . . . . . . 1 Haulers Reinforced 1 | . . . . . . . 1 . . Active Scanning Responses . | . . . . . . . . . . Cargo Convoy Interrupts . | . . . . . . . . . . Stealth | -11 -10 -10 -9 -9 -8 -7 -7 -7 -5 --------- Run | Jun Mat Min Mat Min Mat Fac Sto Rec Fac Distress Signals 10 | . . 1 1 . 3 . 4 . 1 Communications Jammed . | . . . . . . . . . . Distress Signals . | . . . . . . . . . . Times Spotted 113 | . 14 12 7 5 33 7 5 7 23 Peak Tracking Total 10 | . 3 3 3 3 10 2 6 5 7 Tactical Retreats 9 | . . . . . 6 1 . 2 . Traps | -11 -10 -10 -9 -9 -8 -7 -7 -7 -5 ------- Run | Jun Mat Min Mat Min Mat Fac Sto Rec Fac Traps Triggered . | . . . . . . . . . . Indirectly . | . . . . . . . . . . Trap Hack Attempts . | . . . . . . . . . . Triggered . | . . . . . . . . . . Disarmed . | . . . . . . . . . . Reprogrammed 4 | . . . . . 4 . . . . Reused 3 | . . . . . 3 . . . . Traps Extracted . | . . . . . . . . . . Installed 5 | . . . . 2 3 . . . . Triggered 3 | . . . . . 3 . . . . Most Traps Carried 3 | . . . . 3 3 . . . . Machines | -11 -10 -10 -9 -9 -8 -7 -7 -7 -5 ---------- Run | Jun Mat Min Mat Min Mat Fac Sto Rec Fac Machines Disabled 7 | . 1 5 . . 1 . . . . Max in Single Turn 2 | . 1 2 . . 1 . . . . Garrison Access 1 | . . . . . . 1 . . . Machines Repaired . | . . . . . . . . . . Machines Sabotaged . | . . . . . . . . . . Overloaded Fab Kills . | . . . . . . . . . . Hacking | -11 -10 -10 -9 -9 -8 -7 -7 -7 -5 --------- Run | Jun Mat Min Mat Min Mat Fac Sto Rec Fac Machines Accessed 19 | . 3 . 2 . 6 2 2 3 1 Terminals 13 | . 3 . 1 . 4 . 2 3 . Fabricators 1 | . . . . . . . . . 1 Repair Stations 1 | . . . . . 1 . . . . Recycling Units 2 | . . . 1 . 1 . . . . Scanalyzers 1 | . . . . . . 1 . . . Garrison Access 1 | . . . . . . 1 . . . Total Hacks 58 | . 10 . 5 . 18 8 4 9 4 Successful 23 | . 4 . 3 . 11 1 2 1 1 Failed 35 | . 6 . 2 . 7 7 2 8 3 Catastrophic 2 | . . . . . . . . 1 1 Database Lockouts . | . . . . . . . . . . Manual 27 | . 4 . 3 . 4 7 2 4 3 Terminals 40 | . 10 . 3 . 14 . 4 9 . Fabricators 4 | . . . . . . . . . 4 Repair Stations 3 | . . . . . 3 . . . . Recycling Units 3 | . . . 2 . 1 . . . . Scanalyzers 4 | . . . . . . 4 . . . Garrison Access 4 | . . . . . . 4 . . . Terminal Hacks 11 | . 2 . 1 . 6 . 1 1 . Robot Analysis 1 | . . . . . 1 . . . . Prototype ID Bank 1 | . . . . . 1 . . . . Open Door 1 | . . . . . . . 1 . . Branch Access Points 1 | . . . . . 1 . . . . Emergency Access Points 1 | . 1 . . . . . . . . Alert Level 4 | . 1 . 1 . 1 . . 1 . Locate Traps 1 | . . . . . 1 . . . . Reprogram Traps 1 | . . . . . 1 . . . . Fabricator Hacks 1 | . . . . . . . . . 1 Network Status 1 | . . . . . . . . . 1 Repair Station Hacks 2 | . . . . . 2 . . . . Scan Component 1 | . . . . . 1 . . . . Repair 1 | . . . . . 1 . . . . Recycling Unit Hacks 2 | . . . 1 . 1 . . . . Report Inventory 2 | . . . 1 . 1 . . . . Scanalyzer . | . . . . . . . . . . Garrison Access Hacks . | . . . . . . . . . . Unauthorized Hacks 7 | . 2 . 1 . 2 1 1 . . Terminals 5 | . 2 . . . 2 . 1 . . Botnet 5 | . 2 . . . 2 . 1 . . Fabricators . | . . . . . . . . . . Repair Stations . | . . . . . . . . . . Recycling Units 1 | . . . 1 . . . . . . Tunnel 1 | . . . 1 . . . . . . Scanalyzers . | . . . . . . . . . . Garrison Access 1 | . . . . . . 1 . . . Jam 1 | . . . . . . 1 . . . Data Cores Recovered . | . . . . . . . . . . Used . | . . . . . . . . . . Hacking Detections 15 | . 3 . 1 . 4 2 1 3 1 Full Trace Events 9 | . 3 . . . 2 1 1 2 . Feedback Events . | . . . . . . . . . . Feedback Blocked . | . . . . . . . . . . Robot Schematics Acquired . | . . . . . . . . . . Robots Built . | . . . . . . . . . . Authchips . | . . . . . . . . . . Time . | . . . . . . . . . . Total Robot Build Rating . | . . . . . . . . . . Part Schematics Acquired . | . . . . . . . . . . Parts Built . | . . . . . . . . . . Authchips . | . . . . . . . . . . Time . | . . . . . . . . . . Total Part Build Rating . | . . . . . . . . . . Parts Repaired 1 | . . . . . 1 . . . . Time 26 | . . . . . 26 . . . . Parts Recycled . | . . . . . . . . . . Recycled Matter . | . . . . . . . . . . Retrieved Matter . | . . . . . . . . . . Retrieved Components . | . . . . . . . . . . Parts Scanalyzed . | . . . . . . . . . . Part Schematics Acquired . | . . . . . . . . . . Parts Damaged . | . . . . . . . . . . Bothacking | -11 -10 -10 -9 -9 -8 -7 -7 -7 -5 ------------ Run | Jun Mat Min Mat Min Mat Fac Sto Rec Fac Used RIF Installer . | . . . . . . . . . . Robots Hacked . | . . . . . . . . . . Non-combat . | . . . . . . . . . . Combat . | . . . . . . . . . . Robot Hacks Applied . | . . . . . . . . . . Relay Couplers Released . | . . . . . . . . . . Fabnet Peak Effective % . | . . . . . . . . . . Robots Rewired 2 | . . . . . . . . 2 . Allies Hacked . | . . . . . . . . . . Hacks Repelled . | . . . . . . . . . . Allies | -11 -10 -10 -9 -9 -8 -7 -7 -7 -5 -------- Run | Jun Mat Min Mat Min Mat Fac Sto Rec Fac Total Allies 17 | . . . . 5 . . 10 2 . Largest Group 10 | . . . . 5 4 . 10 1 . Highest-Rated Group 173 | . . . . 88 72 . 173 30 . Highest-Rated Ally 31 | . . . . 31 31 . 29 30 . Total Orders 1 | . . . . . . . 1 . . EXPLORE 1 | . . . . . . . 1 . . Ally Attacks 65 | . . . . 24 13 . 26 2 . Total Damage 803 | . . . . 201 145 . 300 157 . Kills 9 | . . . . 3 2 . 3 1 . Allies Corrupted 1 | . . . . . 1 . . . . Allies Melted . | . . . . . . . . . . Intel | -11 -10 -10 -9 -9 -8 -7 -7 -7 -5 ------- Run | Jun Mat Min Mat Min Mat Fac Sto Rec Fac Robot Analysis Total 1 | . . . . . 1 . . . . Derelict Logs Recovered 2 | . . 1 . 1 . . . . . Drone Launches 16 | . . . . . . . 16 . . Drone Recoveries 2 | . . . . . . . 2 . . Exploration | -11 -10 -10 -9 -9 -8 -7 -7 -7 -5 ------------- Run | Jun Mat Min Mat Min Mat Fac Sto Rec Fac Turns Passed 4443 | . 519 1143 224 696 599 285 214 114 649 Spaces Moved 3037 | 1 340 325 131 696 651 140 144 244 365 Core 27 | . . 1 . . 6 . . . 20 Treads 345 | . . 277 31 . . . . . 37 Legs 743 | 1 340 47 19 . 118 140 78 . . Wheels . | . . . . . . . . . . Hover 11 | . . . . . . . . . 11 Flight 1911 | . . . 81 696 527 . 66 244 297 Fastest Speed 29 | 120 120 120 34 34 34 126 32 32 29 Average Speed 93 | 120 121 301 99 34 54 127 100 33 87 Slowest Speed 1550 | 120 400 1550 320 34 200 130 250 97 500 Overloaded Moves . | . . . . . . . . . . Propulsion Burnouts . | . . . . . . . . . . Robots Hopped 21 | . . . 1 7 3 . . 7 3 Cave-ins Triggered . | . . . . . . . . . . Exploration Rate (%) 41 | 2 46 67 13 98 66 4 36 67 11 Regions Visited 9 Branch Regions 4 Pre-discovered Areas 3 | . . . 1 2 . . . . . Known Exits Taken 5 | . . . 1 . 1 1 1 1 . Unknown Exits Taken 4 | 1 1 1 . 1 . . . . . Scrap Searched 2 | . . . . 2 . . . . . Spaces Dug 1 | . . . . . . . . 1 . Terrain Destroyed 133 | . 1 97 . . 9 . . 1 25 Melee 1 | . . . . . . . . 1 . Projectile 19 | . . 1 . . . . . . 18 AOE 113 | . 1 96 . . 9 . . . 7 Terrain Rammed 1 | . . . . . . . . . 1 Walls Destroyed . | . . . . . . . . . . Machines Disabled . | . . . . . . . . . . Actions | -11 -10 -10 -9 -9 -8 -7 -7 -7 -5 --------- Run | Jun Mat Min Mat Min Mat Fac Sto Rec Fac Total 4149 | . 397 401 191 1131 807 195 207 262 558 Wait 564 | . . 1 . 405 66 18 23 2 49 Move 2990 | . 339 324 128 681 645 139 143 231 360 Hop 17 | . . . 1 7 2 . . 5 2 Pick Up 43 | . 15 4 4 9 3 . 2 1 5 Fast Attach 74 | . 2 6 12 1 13 3 6 4 27 Attach 25 | . . 4 2 1 3 4 1 2 8 Detach 31 | . . 3 6 1 3 3 1 2 12 Swap 34 | . 4 9 7 2 8 2 2 . . Drop 83 | . 11 6 12 11 13 2 14 3 11 Fire 242 | . 26 41 14 11 48 23 4 5 70 Melee 5 | . . . 1 . . . . 1 3 Ram 9 | . . . . . . . . . 9 Kick 2 | . . . . . . 1 1 . . Crush 9 | . . 3 4 . . . . . 2 Escape Stasis . | . . . . . . . . . . Rewire 9 | . . . . . . . 3 6 . Trap 5 | . . . . 2 3 . . . . Miscellaneous 7 | . . . . . . . 7 . . Route ------- -11/Junkyard -10/Materials (discovered 2 exits: *Mat / [*Min]) -10/Mines -9/Materials (discovered 2 exits: *Min x2) -9/Mines (discovered 2 exits: *Mat x2) -8/Materials -7/Factory -7/Storage -7/Recycling -5/Factory History --------- Turn | Location | Event 1 | -11/Junkyard | Discovered new exit (range 0) 1 | -11/Junkyard | Entered Materials 184 | -10/Materials | Discovered new exit (range 15) 311 | -10/Materials | Build established: Mutant 490 | -10/Materials | Discovered new exit (range 8) 520 | -10/Materials | Entered Mines 522 | -10/Mines | Met a Derelict bent on vengeance 845 | -10/Mines | Excavation squad dispatched 845 | -10/Mines | A large section of the Mines collapsed 910 | -10/Mines | Core integrity fell below 50% 928 | -10/Mines | Discovered new exit (range 11) 1328 | -10/Mines | Lost 3 parts (2u1w) 1588 | -10/Mines | Build established: Scavenger-Mutant 1663 | -10/Mines | Entered Materials 1663 | -9/Materials | Evolved 2 slots: Propulsion x1, Weapon x1 1664 | -9/Materials | Identified exit to Mines 1887 | -9/Materials | Entered Mines 1888 | -9/Mines | Assisted by bots powering up and referring to "LRC-V3" 1897 | -9/Mines | Received a Rocket Launcher from a helpful Derelict 2067 | -9/Mines | Learned location of Storage (-7) 2120 | -9/Mines | Discovered new exit (range 7) 2328 | -9/Mines | Build established: Scavenger-Skirmisher 2411 | -9/Mines | Discovered new exit (range 3) 2427 | -9/Mines | Found a hidden stash of uninstalled traps 2583 | -9/Mines | Entered Materials 2583 | -8/Materials | Accompanied by 4 allies 2583 | -8/Materials | Evolved 2 slots: Utility x2 2588 | -8/Materials | Led the pair of lost Derelicts to an unsafe place 2816 | -8/Materials | Repaired Lgt. Ion Engine 2841 | -8/Materials | Discovered new exit (range 17) 3011 | -8/Materials | Lost 3 parts (2n1w) 3177 | -8/Materials | Identified exit to Factory 3182 | -8/Materials | Entered Factory 3182 | -7/Factory | Evolved 2 slots: Propulsion x1, Utility x1 3211 | -7/Factory | Garrison activated, responded to threat 3446 | -7/Factory | Discovered new exit (range 17) 3465 | -7/Factory | Identified exit to Storage 3467 | -7/Factory | Entered Storage 3558 | -7/Storage | Assisted by bots powering up and referring to "LRC-V3" 3681 | -7/Storage | Used back door to open Recycling access 3681 | -7/Storage | Discovered new exit (range 4) 3681 | -7/Storage | Identified exit to Recycling 3681 | -7/Storage | Entered Recycling 3765 | -7/Recycling | Discovered new exit (range 20) 3794 | -7/Recycling | Identified exit to Factory 3795 | -7/Recycling | Entered Factory 3795 | -5/Factory | Evolved 4 slots: Power x2, Propulsion x2 4076 | -5/Factory | Lost 6 parts (1p4n1w) 4163 | -5/Factory | Lost 4 parts (2p1n1u) 4175 | -5/Factory | Core integrity fell below 50% 4256 | -5/Factory | Lost 4 parts (1p1n1u1w) 4286 | -5/Factory | Core integrity fell below 20% 4342 | -5/Factory | Build established: Mutant 4375 | -5/Factory | Garrison activated, responded to threat 4441 | -5/Factory | Released all parts (6) 4444 | -5/Factory | Destroyed by G-50 Soldier with Heavy Laser Last Messages --------------- 04407_ K-01 Serf collects debris. 04407_ U-05 Engineer builds a Door. 04410_ K-01 Serf collects debris. 04418_ R-10 Processor collects Carbon-fiber Leg. 04418_ K-01 Serf collects debris. 04422_ R-10 Processor collects Hvy. Laser. 04424_ K-01 Serf collects debris. 04433_ Rammed Fusion Modulator. 04433_ Destabilizing: Core damaged (-30). 04433_ Destabilizing: System interference. 04433_ Adv. Heat Sink temporarily disabled. 04435_ Critical hit (Burn: +37). 04437_ Phase Cannon destroyed. 04440_ Slammed into L-41 Fighter. 04441_ Released Imp. Treads. 04441_ Released Wave Gun. 04441_ Released Adv. Heat Sink. 04441_ Released Imp. Signal Interpreter. 04441_ Released Phase Cannon. 04441_ Released Imp. Medium Armor Plating. Map ----- +----------------------------------------------------+ | ?????????????????????????????????????????????????? | | ?????????????????????????????????????????????????? | | ?????????????????????????????????????????????????? | | ??????????????????????????????????????? ?????????? | | ?????????????????????????????????????? ???????? | | ?????????????????????????????????????? ????????? | | ?????????????????????????????????????? ???????? | | ???????????????????????????????????### ""???????? | | ??????????????????????????????????? ""???????? | | ??????????????????????????????????# """??????? | | ??????????????????????????????????# """??""??? | | ??????????????????????????????????# """" ""??? | | ??????????????????????????????????# """" """" | | ??????????????????????????????????# """" """" | | ??????????????????????????????????# | | ??????????????????????????????????#= | | ????????????????????????###########+## | | ????????????????????????# % # | | ????????????????????????# g""" """ + | | ????????????????????????#!=] """g""" # | | ????????????????????????#]!gg""" """ # | | ????????????????????????#]l! # ##### | | ????????????????????????#]% """ """ # #???? | | ????????????????????????# """ """ # #???? | | ?????????????????#??##### """ """ # #???? | | ??????????????????##????#@ [ # #???? | | ??????????????? ??????#?# # #???? | | ??????????????? ? ?????+ ! # #???? | | ????????????? ?????????## ! # #???? | | ???????????#????#????##?### ########## #?#?? | | ???????????? ??????????############### #???? | | ?????????? ?? ????#????# ## ##??? | | ??????????? ???????????# # #??? | | ???????????? ????#????# # #??? | | ???????????????#?##????# # #??? | | ??????????"? ??#????### "" # #??? | | ???????????? ??????###?# """" / #??? | | ????????????? ?#?#???#?# """" # #??? | | ???????????? ? #??#????# """" # ##?? | | ?????????????#???????### """" # #??? | | ???????????#????????##?# """" # #?#? | | ?????????#?#????###?##?# % %% ### ###??? | | ???????????##???##?#?### % % ### # ??? | | ????????????#??#####??############+## # # ???? | | ?????????###???###?##?############ #### +???" | | ?????????????####?##################?## # ??"? | | ???????????#?######?######### # ^ #???? | | ????????????##????####?### ## ? """ #^ #?? ? | | ???????????? ?############### """ # #?""" | | ???????????? ?# ## ? """ # % # """? | +----------------------------------------------------+ Best States ------------- Heat Dissipation 59 Energy Generation 18 Energy Capacity 290 Matter Stores 300 Matter Capacity 300 Sight Range 20 Robot Scan Range 15 Terrain Scan Range 16 Terrain Scan Density 160 Armor Coverage 225 Resistance: KI 20 Resistance: TH 20 Resistance: EX 20 Resistance: EM 20 Resistance: I 20 Resistance: S 20 Resistance: P 20 Weapon Shielding 33 Evasion (%) 63 Targeting Accuracy 8 Recoil Reduction 3 Kinecelleration 40 Offensive Hacking 10 Defensive Hacking 10 Item Schematics ----------------- None Robot Schematics ------------------ None Fabricated ------------ Nothing Alien Tech Used ----------------- None Achievements -------------- None Challenges ------------ None Game ------ Seed IonMobileTorch Manual? 0 Play Time 00:34:17 Cumulative 533.7 hours Start 2023.08.01 @ 12:26:14 End 2023.08.01 @ 12:57:22 Sessions 1 Manual Loads 0 Difficulty Adventurer Special Mode None Game No. 407 Rogue 167 Adventurer 97 Explorer 143 Win Type - Total 23 Types 19/0/3/0/0/0/0/1/0 Lore% 74 Gallery% 89 Achievement% 73 Wizard Run 0 Options --------- ASCII 0 Keyboard 1 Movement Numpad Keybinds 0 Fullscreen 2 Font 18/X11Bold Map View 76x50 Tactical HUD 1 Map Filters NONE Filters NONE Steam 1 RUN: 7a7e44da-e207-463f-9d37-bf85d7bd39af